[Event "*** SCC Grand Prix: Titled Tuesday Blitz"]
[Site "Chess.com"]
[Date "2020.07.14"]
[Round "8"]
[White "Andrei_Belozerov"]
[Black "praveenb2002"]
[Result "0-1"]
[WhiteElo "2577"]
[BlackElo "2727"]
[TimeControl "180+1"]
[EndTime "11:37:37 PDT"]
[Termination "praveenb2002 won by resignation"]

1. e4 {[%clk 0:03:00.9]} 1... c5 {[%clk 0:02:57.9]} 2. Nf3 {[%clk 0:03:00.5]}
2... Nc6 {[%clk 0:02:58.1]} 3. d4 {[%clk 0:03:00.9]} 3... cxd4 {[%clk
0:02:57.5]} 4. Nxd4 {[%clk 0:03:01.5]} 4... Nf6 {[%clk 0:02:58]} 5. Nc3 {[%clk
0:03:00.9]} 5... e5 {[%clk 0:02:56.3]} 6. Ndb5 {[%clk 0:03:00.7]} 6... d6 {[%clk
0:02:56.8]} 7. Bg5 {[%clk 0:02:59.4]} 7... a6 {[%clk 0:02:57.2]} 8. Na3 {[%clk
0:02:59.8]} 8... b5 {[%clk 0:02:57]} 9. Nd5 {[%clk 0:03:00.1]} 9... Be7 {[%clk
0:02:55.1]} 10. Bxf6 {[%clk 0:03:00.5]} 10... Bxf6 {[%clk 0:02:52.8]} 11. c3
{[%clk 0:03:01]} 11... Ne7 {[%clk 0:02:49.1]} 12. Nxf6+ {[%clk 0:02:58.9]} 12...
gxf6 {[%clk 0:02:50]} 13. Bd3 {[%clk 0:02:55.9]} 13... Bb7 {[%clk 0:02:47.2]}
14. Qe2 {[%clk 0:02:47.8]} 14... d5 {[%clk 0:02:47.1]} 15. O-O {[%clk 0:02:31]}
15... Rg8 {[%clk 0:02:40.6]} 16. Rad1 {[%clk 0:02:28.2]} 16... Qb6 {[%clk
0:02:34.6]} 17. Kh1 {[%clk 0:02:15.5]} 17... O-O-O {[%clk 0:02:20.3]} 18. Nc2
{[%clk 0:02:13.7]} 18... Kb8 {[%clk 0:02:16.5]} 19. f3 {[%clk 0:01:49]} 19...
Ng6 {[%clk 0:02:14.4]} 20. g3 {[%clk 0:01:47.7]} 20... h5 {[%clk 0:02:14]} 21.
Qe3 {[%clk 0:01:44.3]} 21... d4 {[%clk 0:02:02.1]} 22. cxd4 {[%clk 0:01:12.1]}
22... exd4 {[%clk 0:02:03]} 23. Qf2 {[%clk 0:01:12.4]} 23... Ne5 {[%clk
0:02:00.7]} 24. Be2 {[%clk 0:01:09.4]} 24... Nc6 {[%clk 0:01:43.2]} 25. f4
{[%clk 0:01:02.7]} 25... h4 {[%clk 0:01:39.6]} 26. g4 {[%clk 0:01:02.4]} 26...
h3 {[%clk 0:01:38.5]} 27. Bf3 {[%clk 0:01:01.4]} 27... Rd7 {[%clk 0:01:27.5]}
28. Rd2 {[%clk 0:01:00.2]} 28... Rgd8 {[%clk 0:01:26.3]} 29. Rfd1 {[%clk
0:01:00.3]} 29... Qc5 {[%clk 0:01:12.1]} 30. Kg1 {[%clk 0:00:58.4]} 30... Qc4
{[%clk 0:01:10.8]} 31. b3 {[%clk 0:00:55.9]} 31... Qc3 {[%clk 0:01:08.5]} 32.
Rd3 {[%clk 0:00:56.1]} 32... Qc5 {[%clk 0:01:09]} 33. a3 {[%clk 0:00:52.3]}
33... Qd6 {[%clk 0:01:06.5]} 34. Qg3 {[%clk 0:00:39]} 34... Qc7 {[%clk
0:01:01.6]} 35. b4 {[%clk 0:00:28.6]} 35... a5 {[%clk 0:00:45.6]} 36. R1d2
{[%clk 0:00:27.1]} 36... axb4 {[%clk 0:00:43.5]} 37. axb4 {[%clk 0:00:27.3]}
37... Qd6 {[%clk 0:00:39.1]} 38. Qxh3 {[%clk 0:00:21.9]} 38... Qxf4 {[%clk
0:00:37.6]} 39. Qg3 {[%clk 0:00:19.5]} 39... Qxg3+ {[%clk 0:00:36.8]} 40. hxg3
{[%clk 0:00:19.7]} 40... Ne5 {[%clk 0:00:37.5]} 41. Rb3 {[%clk 0:00:19.4]} 41...
Nxf3+ {[%clk 0:00:25.3]} 42. Rxf3 {[%clk 0:00:18.8]} 42... Bxe4 {[%clk
0:00:25.7]} 43. Rxf6 {[%clk 0:00:18.8]} 43... Rc8 {[%clk 0:00:23.9]} 44. Nxd4
{[%clk 0:00:18]} 44... Rc1+ {[%clk 0:00:23.5]} 45. Kf2 {[%clk 0:00:17.8]} 45...
Kc8 {[%clk 0:00:22.6]} 46. Rf4 {[%clk 0:00:15.2]} 46... Bb7 {[%clk 0:00:19]} 47.
g5 {[%clk 0:00:14]} 47... Rc4 {[%clk 0:00:19.2]} 48. Ke3 {[%clk 0:00:13.7]}
48... Rxb4 {[%clk 0:00:19.2]} 49. Rc2+ {[%clk 0:00:13.2]} 49... Rc4 {[%clk
0:00:15.4]} 50. Rxc4+ {[%clk 0:00:12.6]} 50... bxc4 {[%clk 0:00:16.3]} 51. Kd2
{[%clk 0:00:12.9]} 51... Bd5 {[%clk 0:00:15.8]} 52. Kc3 {[%clk 0:00:12.9]} 52...
Ra7 {[%clk 0:00:15.8]} 53. Rf5 {[%clk 0:00:12.9]} 53... Be4 {[%clk 0:00:10.8]}
54. Rc5+ {[%clk 0:00:12.8]} 54... Kd7 {[%clk 0:00:10.8]} 55. Kxc4 {[%clk
0:00:12.1]} 55... Ra3 {[%clk 0:00:10.6]} 56. Re5 {[%clk 0:00:11]} 56... Bd3+
{[%clk 0:00:10.6]} 57. Kc5 {[%clk 0:00:10.3]} 57... Ra5+ {[%clk 0:00:10.8]} 58.
Nb5 {[%clk 0:00:07.4]} 58... Rxb5+ {[%clk 0:00:11]} 59. Kd4 {[%clk 0:00:08.3]}
59... Rxe5 {[%clk 0:00:11.4]} 60. Kxe5 {[%clk 0:00:08.8]} 60... Bg6 {[%clk
0:00:12.1]} 61. Kf6 {[%clk 0:00:08.6]} 61... Kd6 {[%clk 0:00:12.3]} 62. g4
{[%clk 0:00:07.3]} 62... Kd5 {[%clk 0:00:12.8]} 63. Ke7 {[%clk 0:00:07.3]} 63...
Ke5 {[%clk 0:00:13.4]} 64. Kf8 {[%clk 0:00:07.2]} 64... Kf4 {[%clk 0:00:14]} 65.
Kg7 {[%clk 0:00:07.6]} 65... Kxg5 {[%clk 0:00:14.7]} 66. Kh8 {[%clk 0:00:07]}
66... Kxg4 {[%clk 0:00:15.2]} 67. Kg7 {[%clk 0:00:06.9]} 67... Kg5 {[%clk
0:00:15.6]} 68. Kh8 {[%clk 0:00:06.8]} 68... f5 {[%clk 0:00:16.3]} 69. Kg7
{[%clk 0:00:07.1]} 69... f4 {[%clk 0:00:17.2]} 70. Kh8 {[%clk 0:00:07.3]} 70...
f3 {[%clk 0:00:18.1]} 0-1

[Event "*** SCC Grand Prix: Titled Tuesday Blitz"]
[Site "Chess.com"]
[Date "2020.07.14"]
[Round "8"]
[White "Bodnar_Mykola"]
[Black "13MiRacLe"]
[Result "0-1"]
[WhiteElo "2481"]
[BlackElo "2632"]
[TimeControl "180+1"]
[EndTime "11:37:44 PDT"]
[Termination "13MiRacLe won by checkmate"]

1. e4 {[%clk 0:03:00.9]} 1... e5 {[%clk 0:02:58.6]} 2. Nf3 {[%clk 0:03:00.1]}
2... Nc6 {[%clk 0:02:59.2]} 3. Bc4 {[%clk 0:03:00.5]} 3... Nf6 {[%clk
0:02:59.1]} 4. d3 {[%clk 0:03:01]} 4... Bc5 {[%clk 0:02:59.4]} 5. c3 {[%clk
0:03:00.9]} 5... O-O {[%clk 0:02:59.4]} 6. O-O {[%clk 0:03:01.3]} 6... d5 {[%clk
0:02:59.8]} 7. exd5 {[%clk 0:03:01.4]} 7... Nxd5 {[%clk 0:03:00.7]} 8. Re1
{[%clk 0:03:01.9]} 8... Bg4 {[%clk 0:03:00.6]} 9. Nbd2 {[%clk 0:03:01.8]} 9...
Nb6 {[%clk 0:03:00.3]} 10. h3 {[%clk 0:02:56.1]} 10... Bh5 {[%clk 0:02:59.1]}
11. Bb3 {[%clk 0:02:56]} 11... Qxd3 {[%clk 0:02:57.8]} 12. Nxe5 {[%clk
0:02:55.8]} 12... Qf5 {[%clk 0:02:48.4]} 13. Nef3 {[%clk 0:02:54.3]} 13... Rae8
{[%clk 0:02:44.9]} 14. Rxe8 {[%clk 0:01:58.3]} 14... Rxe8 {[%clk 0:02:43.8]} 15.
g4 {[%clk 0:01:33.8]} 15... Bxg4 {[%clk 0:02:42.7]} 16. hxg4 {[%clk 0:01:34.7]}
16... Qxg4+ {[%clk 0:02:42.6]} 17. Kh1 {[%clk 0:01:35]} 17... Bxf2 {[%clk
0:02:16.8]} 18. Qf1 {[%clk 0:01:07.3]} 18... Qh5+ {[%clk 0:01:47.7]} 19. Kg2
{[%clk 0:01:02.8]} 19... Bc5 {[%clk 0:01:45.7]} 20. Bc2 {[%clk 0:00:35.6]} 20...
Nd5 {[%clk 0:01:41.5]} 21. Ne4 {[%clk 0:00:34.7]} 21... Rxe4 {[%clk 0:01:05.1]}
22. Bxe4 {[%clk 0:00:34.5]} 22... Qg4+ {[%clk 0:01:05.2]} 23. Kh2 {[%clk
0:00:25.7]} 23... Bd6+ {[%clk 0:00:53.1]} 24. Kh1 {[%clk 0:00:26]} 24... Qxe4
{[%clk 0:00:53]} 25. Bd2 {[%clk 0:00:21]} 25... Ne5 {[%clk 0:00:47.2]} 26. Re1
{[%clk 0:00:16.9]} 26... Qxf3+ {[%clk 0:00:35.6]} 27. Qxf3 {[%clk 0:00:17]}
27... Nxf3 {[%clk 0:00:36.2]} 28. Re8+ {[%clk 0:00:17.9]} 28... Bf8 {[%clk
0:00:36.4]} 29. Bc1 {[%clk 0:00:18.8]} 29... f6 {[%clk 0:00:31.6]} 30. c4 {[%clk
0:00:18.6]} 30... Nb4 {[%clk 0:00:18.2]} 31. Be3 {[%clk 0:00:15.6]} 31... Kf7
{[%clk 0:00:15.7]} 32. Rc8 {[%clk 0:00:15.5]} 32... Bd6 {[%clk 0:00:14.1]} 33.
Bxa7 {[%clk 0:00:13.3]} 33... Nxa2 {[%clk 0:00:12.1]} 34. Bb8 {[%clk 0:00:13.1]}
34... Ke6 {[%clk 0:00:08.8]} 35. Rg8 {[%clk 0:00:11.9]} 35... g6 {[%clk
0:00:07.9]} 36. Rg7 {[%clk 0:00:10.5]} 36... h5 {[%clk 0:00:05.6]} 37. Rxg6
{[%clk 0:00:09.9]} 37... Ne5 {[%clk 0:00:05.2]} 38. Rg7 {[%clk 0:00:09.7]} 38...
Nxc4 {[%clk 0:00:05.2]} 39. Bxc7 {[%clk 0:00:09.5]} 39... Nb4 {[%clk 0:00:04.6]}
40. Bxd6 {[%clk 0:00:09.3]} 40... Nxd6 {[%clk 0:00:05.5]} 41. Rh7 {[%clk
0:00:08.7]} 41... Nd3 {[%clk 0:00:05.5]} 42. b3 {[%clk 0:00:08]} 42... Nc5
{[%clk 0:00:05.9]} 43. b4 {[%clk 0:00:07.2]} 43... Nd3 {[%clk 0:00:06.4]} 44.
Rxh5 {[%clk 0:00:05.4]} 44... Nxb4 {[%clk 0:00:06.4]} 45. Kg2 {[%clk 0:00:06.3]}
45... Nd5 {[%clk 0:00:06.3]} 46. Kf3 {[%clk 0:00:06.4]} 46... b5 {[%clk
0:00:06.9]} 47. Rh1 {[%clk 0:00:06.5]} 47... b4 {[%clk 0:00:07]} 48. Ke2 {[%clk
0:00:07]} 48... f5 {[%clk 0:00:05.6]} 49. Kd3 {[%clk 0:00:07.9]} 49... f4 {[%clk
0:00:05.6]} 50. Rh6+ {[%clk 0:00:08]} 50... Ke5 {[%clk 0:00:06]} 51. Rh5+ {[%clk
0:00:08.5]} 51... Nf5 {[%clk 0:00:06.4]} 52. Kc4 {[%clk 0:00:08.2]} 52... f3
{[%clk 0:00:06]} 53. Rh3 {[%clk 0:00:08.1]} 53... f2 {[%clk 0:00:05.4]} 54. Rf3
{[%clk 0:00:07.4]} 54... Nfe3+ {[%clk 0:00:04.9]} 55. Kb3 {[%clk 0:00:04.4]}
55... f1=Q {[%clk 0:00:04.9]} 56. Rxf1 {[%clk 0:00:05.3]} 56... Nxf1 {[%clk
0:00:05.3]} 57. Kc4 {[%clk 0:00:06.2]} 57... Nfe3+ {[%clk 0:00:05.7]} 58. Kd3
{[%clk 0:00:06.8]} 58... Nf5 {[%clk 0:00:05.4]} 59. Kc4 {[%clk 0:00:07.1]} 59...
Kd6 {[%clk 0:00:06]} 60. Kb3 {[%clk 0:00:06.8]} 60... Kc5 {[%clk 0:00:06.4]} 61.
Ka4 {[%clk 0:00:07.7]} 61... Nfe7 {[%clk 0:00:06.3]} 62. Kb3 {[%clk 0:00:08.6]}
62... Kb5 {[%clk 0:00:06.7]} 63. Kb2 {[%clk 0:00:09.5]} 63... Kc4 {[%clk
0:00:07.3]} 64. Kc2 {[%clk 0:00:09.8]} 64... b3+ {[%clk 0:00:08.1]} 65. Kb2
{[%clk 0:00:10.7]} 65... Kb4 {[%clk 0:00:08.7]} 66. Kb1 {[%clk 0:00:11.1]} 66...
Kc3 {[%clk 0:00:09.1]} 67. Ka1 {[%clk 0:00:12]} 67... Nb4 {[%clk 0:00:08.5]} 68.
Kb1 {[%clk 0:00:12.2]} 68... Ned5 {[%clk 0:00:07.7]} 69. Ka1 {[%clk 0:00:12.8]}
69... Ne3 {[%clk 0:00:06.9]} 70. Kb1 {[%clk 0:00:13.4]} 70... Nc4 {[%clk
0:00:07.3]} 71. Ka1 {[%clk 0:00:13.8]} 71... b2+ {[%clk 0:00:07.5]} 72. Kb1
{[%clk 0:00:14.2]} 72... Nd2# {[%clk 0:00:07.9]} 0-1

[Event "*** SCC Grand Prix: Titled Tuesday Blitz"]
[Site "Chess.com"]
[Date "2020.07.14"]
[Round "8"]
[White "MF1966Idrisov"]
[Black "XiaoKangZhong"]
[Result "1-0"]
[WhiteElo "2337"]
[BlackElo "2429"]
[TimeControl "180+1"]
[EndTime "11:37:46 PDT"]
[Termination "MF1966Idrisov won by checkmate"]

1. Nf3 {[%clk 0:03:00.9]} 1... Nf6 {[%clk 0:02:59.2]} 2. b3 {[%clk 0:03:00.8]}
2... g6 {[%clk 0:02:55.9]} 3. Bb2 {[%clk 0:02:58.6]} 3... Bg7 {[%clk 0:02:56.8]}
4. c4 {[%clk 0:02:58.8]} 4... O-O {[%clk 0:02:52.6]} 5. g3 {[%clk 0:02:58.9]}
5... d5 {[%clk 0:02:52.2]} 6. cxd5 {[%clk 0:02:58.4]} 6... Nxd5 {[%clk
0:02:53.1]} 7. Bxg7 {[%clk 0:02:57.4]} 7... Kxg7 {[%clk 0:02:54]} 8. Qc1 {[%clk
0:02:52.7]} 8... Nf6 {[%clk 0:02:48.7]} 9. Bg2 {[%clk 0:02:51.7]} 9... Nd5
{[%clk 0:02:36.1]} 10. O-O {[%clk 0:02:49.2]} 10... Nb6 {[%clk 0:02:36]} 11. d4
{[%clk 0:02:44.8]} 11... Nc6 {[%clk 0:02:32]} 12. Rd1 {[%clk 0:02:42.2]} 12...
Bg4 {[%clk 0:02:28.1]} 13. Qb2 {[%clk 0:02:39.8]} 13... Kg8 {[%clk 0:02:25.5]}
14. Na3 {[%clk 0:02:39]} 14... e6 {[%clk 0:02:16.3]} 15. Rac1 {[%clk 0:02:38.1]}
15... Nd5 {[%clk 0:02:05.6]} 16. Nc4 {[%clk 0:02:31.9]} 16... Nf6 {[%clk
0:01:56.6]} 17. Nce5 {[%clk 0:02:25.4]} 17... Bxf3 {[%clk 0:01:52.7]} 18. Bxf3
{[%clk 0:02:20.2]} 18... Ne7 {[%clk 0:01:22.7]} 19. Bxb7 {[%clk 0:02:17.5]}
19... Rb8 {[%clk 0:01:21.8]} 20. Bf3 {[%clk 0:02:09.9]} 20... Nd7 {[%clk
0:01:11.3]} 21. Ng4 {[%clk 0:01:51.4]} 21... h5 {[%clk 0:01:00.1]} 22. Ne3
{[%clk 0:01:50.5]} 22... Nf6 {[%clk 0:01:00.3]} 23. Nc4 {[%clk 0:01:46.2]} 23...
Kg7 {[%clk 0:00:56.6]} 24. Rd2 {[%clk 0:01:36.6]} 24... Nfd5 {[%clk 0:00:50.1]}
25. e4 {[%clk 0:01:29.9]} 25... Nb6 {[%clk 0:00:50]} 26. Ne5 {[%clk 0:01:29.5]}
26... f6 {[%clk 0:00:47.2]} 27. Nc6 {[%clk 0:01:26.1]} 27... Nxc6 {[%clk
0:00:46.9]} 28. Rxc6 {[%clk 0:01:26.1]} 28... Qd7 {[%clk 0:00:46.8]} 29. Rdc2
{[%clk 0:01:24.7]} 29... Rbc8 {[%clk 0:00:46.2]} 30. Qa3 {[%clk 0:01:21.4]}
30... Na8 {[%clk 0:00:14.9]} 31. d5 {[%clk 0:01:16.4]} 31... exd5 {[%clk
0:00:14.3]} 32. exd5 {[%clk 0:01:16.5]} 32... Nb6 {[%clk 0:00:13.2]} 33. Qc5
{[%clk 0:00:59.2]} 33... Rf7 {[%clk 0:00:10.2]} 34. a4 {[%clk 0:00:58.4]} 34...
Qd8 {[%clk 0:00:07.2]} 35. Qa5 {[%clk 0:00:54.3]} 35... Nd7 {[%clk 0:00:05]} 36.
Bg2 {[%clk 0:00:40.2]} 36... Ne5 {[%clk 0:00:04.1]} 37. Ra6 {[%clk 0:00:38.8]}
37... Rb8 {[%clk 0:00:02.4]} 38. Rc3 {[%clk 0:00:36.4]} 38... Qd7 {[%clk
0:00:02.3]} 39. Rxa7 {[%clk 0:00:34.3]} 39... Rc8 {[%clk 0:00:02.8]} 40. Qc5
{[%clk 0:00:31.6]} 40... Ng4 {[%clk 0:00:02.7]} 41. d6 {[%clk 0:00:28.2]} 41...
cxd6 {[%clk 0:00:01.5]} 42. Rxd7 {[%clk 0:00:23]} 42... Rxc5 {[%clk 0:00:01.7]}
43. Rxf7+ {[%clk 0:00:22.2]} 43... Kxf7 {[%clk 0:00:02.5]} 44. Rxc5 {[%clk
0:00:22.1]} 44... dxc5 {[%clk 0:00:03.4]} 45. a5 {[%clk 0:00:22.3]} 45... Ne5
{[%clk 0:00:04.1]} 46. a6 {[%clk 0:00:22]} 46... Nd7 {[%clk 0:00:03.6]} 47. a7
{[%clk 0:00:22.1]} 47... Nb6 {[%clk 0:00:04.3]} 48. a8=Q {[%clk 0:00:21.9]}
48... Nxa8 {[%clk 0:00:05]} 49. Bxa8 {[%clk 0:00:21.2]} 49... Ke6 {[%clk
0:00:05.9]} 50. Kf1 {[%clk 0:00:20.5]} 50... Ke5 {[%clk 0:00:06.8]} 51. Ke2
{[%clk 0:00:20.5]} 51... Kd4 {[%clk 0:00:07.7]} 52. f3 {[%clk 0:00:19.7]} 52...
g5 {[%clk 0:00:08]} 53. h3 {[%clk 0:00:19.4]} 53... h4 {[%clk 0:00:08]} 54. gxh4
{[%clk 0:00:19.1]} 54... gxh4 {[%clk 0:00:08.9]} 55. f4 {[%clk 0:00:18.2]} 55...
f5 {[%clk 0:00:07.8]} 56. Kf3 {[%clk 0:00:17.6]} 56... Kc3 {[%clk 0:00:05.2]}
57. Bd5 {[%clk 0:00:17]} 57... Kb4 {[%clk 0:00:05.3]} 58. Be6 {[%clk 0:00:17]}
58... Ka3 {[%clk 0:00:05.2]} 59. Bxf5 {[%clk 0:00:17.1]} 59... Kxb3 {[%clk
0:00:06.1]} 60. Be6+ {[%clk 0:00:17.2]} 60... Kc3 {[%clk 0:00:06.4]} 61. f5
{[%clk 0:00:17]} 61... Kd4 {[%clk 0:00:07]} 62. f6 {[%clk 0:00:17.1]} 62... Ke5
{[%clk 0:00:07.8]} 63. f7 {[%clk 0:00:17.4]} 63... Kxe6 {[%clk 0:00:08.7]} 64.
f8=Q {[%clk 0:00:17.4]} 64... Kd5 {[%clk 0:00:09.6]} 65. Qf5+ {[%clk 0:00:17.3]}
65... Kd4 {[%clk 0:00:10.5]} 66. Qe4+ {[%clk 0:00:17.5]} 66... Kc3 {[%clk
0:00:11.1]} 67. Ke3 {[%clk 0:00:17.6]} 67... c4 {[%clk 0:00:12]} 68. Qd4+ {[%clk
0:00:17.6]} 68... Kb3 {[%clk 0:00:12.4]} 69. Kd2 {[%clk 0:00:17.6]} 69... Kb4
{[%clk 0:00:12.9]} 70. Kc2 {[%clk 0:00:17.2]} 70... Ka3 {[%clk 0:00:13.3]} 71.
Qb6 {[%clk 0:00:15]} 71... Ka4 {[%clk 0:00:11.9]} 72. Kc1 {[%clk 0:00:13.8]}
72... Ka3 {[%clk 0:00:11.6]} 73. Kc2 {[%clk 0:00:12.8]} 73... Ka4 {[%clk
0:00:11.9]} 74. Kc3 {[%clk 0:00:12.1]} 74... Ka3 {[%clk 0:00:11.6]} 75. Qb4+
{[%clk 0:00:12.1]} 75... Ka2 {[%clk 0:00:11.8]} 76. Qb2# {[%clk 0:00:11.9]} 1-0

[Event "*** SCC Grand Prix: Titled Tuesday Blitz"]
[Site "Chess.com"]
[Date "2020.07.14"]
[Round "8"]
[White "Schandenfreude"]
[Black "Vesper2018"]
[Result "1/2-1/2"]
[WhiteElo "2458"]
[BlackElo "2583"]
[TimeControl "180+1"]
[EndTime "11:37:49 PDT"]
[Termination "Game drawn - insufficient material"]

1. Nf3 {[%clk 0:03:00.9]} 1... Nf6 {[%clk 0:02:59.6]} 2. c4 {[%clk 0:02:56.9]}
2... g6 {[%clk 0:02:58.5]} 3. b3 {[%clk 0:02:56.6]} 3... Bg7 {[%clk 0:02:58.2]}
4. Bb2 {[%clk 0:02:57]} 4... c5 {[%clk 0:02:54.2]} 5. g3 {[%clk 0:02:56.2]} 5...
d6 {[%clk 0:02:53.5]} 6. Bg2 {[%clk 0:02:51.2]} 6... e5 {[%clk 0:02:53.2]} 7.
O-O {[%clk 0:02:50.1]} 7... O-O {[%clk 0:02:52.9]} 8. d3 {[%clk 0:02:49.6]} 8...
Nc6 {[%clk 0:02:53]} 9. Nc3 {[%clk 0:02:47]} 9... h6 {[%clk 0:02:51.7]} 10. a3
{[%clk 0:02:45.8]} 10... Be6 {[%clk 0:02:51.4]} 11. b4 {[%clk 0:02:36.9]} 11...
cxb4 {[%clk 0:02:39.9]} 12. axb4 {[%clk 0:02:36.9]} 12... Nxb4 {[%clk 0:02:40]}
13. Qb3 {[%clk 0:02:35.2]} 13... Na6 {[%clk 0:02:10.1]} 14. Qxb7 {[%clk
0:01:55.7]} 14... Nc5 {[%clk 0:02:09.7]} 15. Qb4 {[%clk 0:01:35.4]} 15... Rb8
{[%clk 0:01:51.9]} 16. Qa3 {[%clk 0:01:35.1]} 16... Qd7 {[%clk 0:01:20.1]} 17.
Rfb1 {[%clk 0:01:28.7]} 17... Nb3 {[%clk 0:00:38.4]} 18. Ra2 {[%clk 0:01:17]}
18... e4 {[%clk 0:00:37.6]} 19. Nxe4 {[%clk 0:00:57.4]} 19... Nxe4 {[%clk
0:00:34.8]} 20. Bxg7 {[%clk 0:00:56.4]} 20... Kxg7 {[%clk 0:00:35.2]} 21. Rxb3
{[%clk 0:00:54.7]} 21... Nc5 {[%clk 0:00:24]} 22. Rbb2 {[%clk 0:00:47.2]} 22...
Bh3 {[%clk 0:00:16.2]} 23. Nd4 {[%clk 0:00:34.6]} 23... Bxg2 {[%clk 0:00:14.9]}
24. Kxg2 {[%clk 0:00:35.5]} 24... a6 {[%clk 0:00:15.3]} 25. Qc3 {[%clk
0:00:33.3]} 25... Kh7 {[%clk 0:00:14]} 26. Qc2 {[%clk 0:00:30.3]} 26... f5
{[%clk 0:00:11.8]} 27. Rxb8 {[%clk 0:00:26.8]} 27... Rxb8 {[%clk 0:00:12]} 28.
Rb2 {[%clk 0:00:27]} 28... Re8 {[%clk 0:00:12.3]} 29. Nb3 {[%clk 0:00:23.9]}
29... Ne6 {[%clk 0:00:11.7]} 30. Qc3 {[%clk 0:00:22.2]} 30... f4 {[%clk
0:00:11.7]} 31. c5 {[%clk 0:00:13.5]} 31... dxc5 {[%clk 0:00:09.9]} 32. Rc2
{[%clk 0:00:12.9]} 32... Qd5+ {[%clk 0:00:09]} 33. Kg1 {[%clk 0:00:11.4]} 33...
Ng5 {[%clk 0:00:09.2]} 34. f3 {[%clk 0:00:10.4]} 34... fxg3 {[%clk 0:00:06.2]}
35. hxg3 {[%clk 0:00:11.3]} 35... Ne6 {[%clk 0:00:06.4]} 36. Nxc5 {[%clk
0:00:10.7]} 36... Rc8 {[%clk 0:00:06.2]} 37. d4 {[%clk 0:00:09.6]} 37... Qxd4+
{[%clk 0:00:06.4]} 38. Qxd4 {[%clk 0:00:08.7]} 38... Nxd4 {[%clk 0:00:06.8]} 39.
Rd2 {[%clk 0:00:09.1]} 39... Nxf3+ {[%clk 0:00:04.7]} 40. exf3 {[%clk
0:00:08.1]} 40... Rxc5 {[%clk 0:00:05.4]} 41. Rd7+ {[%clk 0:00:07.6]} 41... Kg8
{[%clk 0:00:05.9]} 42. Rd6 {[%clk 0:00:08.4]} 42... a5 {[%clk 0:00:05.4]} 43.
Rxg6+ {[%clk 0:00:08.1]} 43... Kh7 {[%clk 0:00:06.1]} 44. Ra6 {[%clk 0:00:08.1]}
44... h5 {[%clk 0:00:06.2]} 45. Kg2 {[%clk 0:00:08]} 45... Rf5 {[%clk
0:00:04.6]} 46. f4 {[%clk 0:00:07.8]} 46... h4 {[%clk 0:00:04.6]} 47. Kh3 {[%clk
0:00:02.9]} 47... hxg3 {[%clk 0:00:04.2]} 48. Kxg3 {[%clk 0:00:03.4]} 48... Rb5
{[%clk 0:00:04.4]} 49. Kg4 {[%clk 0:00:03.6]} 49... Kg7 {[%clk 0:00:04.5]} 50.
f5 {[%clk 0:00:03]} 50... Rb1 {[%clk 0:00:04]} 51. Ra7+ {[%clk 0:00:01.5]} 51...
Kf6 {[%clk 0:00:03]} 52. Ra6+ {[%clk 0:00:02.4]} 52... Kf7 {[%clk 0:00:03.4]}
53. Rxa5 {[%clk 0:00:03.1]} 53... Rg1+ {[%clk 0:00:03.2]} 54. Kf4 {[%clk
0:00:03]} 54... Rf1+ {[%clk 0:00:03.6]} 55. Ke5 {[%clk 0:00:03.9]} 55... Re1+
{[%clk 0:00:03.9]} 56. Kf4 {[%clk 0:00:04.8]} 56... Rf1+ {[%clk 0:00:04.2]} 57.
Ke5 {[%clk 0:00:05.2]} 57... Re1+ {[%clk 0:00:04.6]} 58. Kd6 {[%clk 0:00:05.6]}
58... Kf6 {[%clk 0:00:04.6]} 59. Kc6 {[%clk 0:00:05.7]} 59... Rf1 {[%clk
0:00:04.1]} 60. Rc5 {[%clk 0:00:06.6]} 60... Rxf5 {[%clk 0:00:04.3]} 61. Rxf5+
{[%clk 0:00:06.5]} 61... Kxf5 {[%clk 0:00:04.5]} 1/2-1/2